Cogmind - Beta 17.1 @@@ ROGUE MODE // 2026.09.23 @ 13:28:01 Player: YA-B01 Result: Destroyed by G-73 Enforcer with Heavy Laser Performance ------------- Evolutions (9) 4500 Regions Visited (17) 3400 Robots Destroyed (401) 2005 Value Destroyed (16794) 16794 Prototype IDs (47) 940 Alien Tech Used (0) 0 Bonus (2014) 2014 TOTAL SCORE: 29653 Bonus ------- High Alert Combat Kills 1372 Follower Combat Kills 113 Hacked Protovariant 500 Scanned by Researcher 500 Friendly Fire -471 Cogmind --------- Core Integrity 0/1600 Matter 292/300 Energy 98/100 System Corruption 21% Temperature Cool (9) Movement Core (50) Location -1/Access Parts ------- > --- POWER (2) -------- (None) > --- PROPULSION (7) --- (None) > --- UTILITY (11) ----- Machine Analyzer Advanced Corruption Screen > --- WEAPON (5) ------- (None) > --- INVENTORY (5) ---- Light Quantum Reactor Long-range IFF Parser Railgun Graviton Cannon Gamma Bomb Array Peak State ------------ > --- POWER ------------ Quantum Reactor Quantum Reactor > --- PROPULSION ------- Advanced Medium Treads Heavy Siege Treads Heavy Siege Treads Advanced Heavy Siege Treads > --- UTILITY ---------- Advanced Cooling System Advanced Cooling System Large Storage Unit Seismic Detector Advanced Target Analyzer SHELL Armor Graphene Brace Experimental Hardlight Generator Advanced Hacking Suite > --- WEAPON ----------- Enhanced Gamma Rifle Heavy Laser Enhanced Quantum Rifle KE Penetrator Multirail > --- INVENTORY -------- Medium Treads Heavy Siege Treads Heavy Siege Treads High-capacity Matter Pod Layered Medium Armor Plating Heavy Laser Phase Gun Compact HERF Cannon KE Penetrator KE Penetrator KE Penetrator Graviton Cannon Heavy Flail [Rating: 198] Favorites ----------- Power Quantum Reactor Engine Cooled Ion Engine Power Core Light Nuclear Core Reactor Quantum Reactor Propulsion Light Treads Treads Light Treads Leg Improved Thunder Leg Wheel Armored Wheel Utility Large Storage Unit Device Advanced Heat Sink Storage Large Storage Unit Processor Advanced Target Analyzer Hackware Advanced Hacking Suite Protection SHELL Armor Weapon Beam Rifle Energy Gun Beam Rifle Energy Cannon Beam Cannon Ballistic Gun Minigun Ballistic Cannon Linear Accelerator Launcher Grenade Launcher Impact Weapon Heavy Flail Special Melee Weapon Improved Datajack Build | -11 -10 -10 -9 -9 -9 -8 -8 -7 -6 -5 -4 -4 -4 -3 -2 -2 -1 ------- Run | Yrd Mat Min Mat Min Exi Min Mat Fac Fac Fac Fac Was Fac Res Res Tes Acc Slots Evolved 18 | . . . 2 . . . 2 2 2 2 2 . . 2 2 . 2 Power 1 | . . . . . . . . . . . . . . . . . 1 Propulsion 5 | . . . 1 . . . 1 . . 1 1 . . . 1 . . Utility 9 | . . . . . . . . 2 2 . 1 . . 2 1 . 1 Weapon 3 | . . . 1 . . . 1 . . 1 . . . . . . . Parts Attached 252 | 9 8 10 19 6 1 1 18 6 6 9 7 2 24 24 47 17 38 Power 22 | 2 2 1 2 . . . 1 . . 3 1 . 1 2 3 1 3 Engine 8 | 2 1 1 2 . . . . . . 1 . . . . 1 . . Core 3 | . 1 . . . . . 1 . . 1 . . . . . . . Reactor 11 | . . . . . . . . . . 1 1 . 1 2 2 1 3 Propulsion 78 | 2 1 4 9 2 . . 11 1 1 2 2 1 6 4 22 2 8 Treads 53 | 2 1 2 5 1 . . 11 1 1 2 1 . 5 1 11 2 7 Leg 4 | . . . . . . . . . . . . . . 1 3 . . Wheel 21 | . . 2 4 1 . . . . . . 1 1 1 2 8 . 1 Hover . | . . . . . . . . . . . . . . . . . . Flight . | . . . . . . . . . . . . . . . . . . Utility 73 | 2 3 3 2 . . 1 1 3 4 3 2 1 8 9 9 8 14 Device 35 | 1 1 2 1 . . . 1 1 2 1 1 1 1 3 2 7 10 Storage 7 | 1 1 . 1 . . . . . . . . . 3 1 . . . Processor 7 | . . . . . . . . . 1 . . . . 3 . . 3 Hackware 4 | . . . . . . . . 1 . . . . . 1 2 . . Protection 20 | . 1 1 . . . 1 . 1 1 2 1 . 4 1 5 1 1 Artifact . | . . . . . . . . . . . . . . . . . . Weapon 79 | 3 2 2 6 4 1 . 5 2 1 1 2 . 9 9 13 6 13 Energy Gun 32 | 2 1 . 3 2 . . 2 1 . 1 1 . 5 6 3 2 3 Energy Cannon 3 | . . 1 . . . . . . . . . . . . 1 1 . Ballistic Gun 29 | 1 . . 3 2 . . 3 . . . 1 . 3 2 4 3 7 Ballistic Cannon 5 | . . . . . . . . . . . . . . 1 2 . 2 Launcher 7 | . 1 1 . . . . . . 1 . . . . . 3 . 1 Special Weapon . | . . . . . . . . . . . . . . . . . . Impact Weapon 1 | . . . . . . . . . . . . . 1 . . . . Slashing Weapon . | . . . . . . . . . . . . . . . . . . Piercing Weapon . | . . . . . . . . . . . . . . . . . . Special Melee Weapon 2 | . . . . . 1 . . 1 . . . . . . . . . Unidentified Prototypes 11 | . . . 1 . . . . . . . . . . 1 2 3 4 Parts Lost 144 | . 1 4 8 1 . . 4 1 . . 5 3 15 18 39 11 34 Power 12 | . 1 1 1 . . . 1 . . . . . 1 2 2 . 3 Propulsion 48 | . . 1 4 . . . 1 . . . 1 1 6 4 16 3 11 Utility 35 | . . 1 . . . . . . . . 2 . 3 6 9 2 12 Weapon 49 | . . 1 3 1 . . 2 1 . . 2 2 5 6 12 6 8 Highest Loss Streak 19 | . 1 2 2 1 . . 2 1 . . 3 2 5 5 19 3 17 To Critical Strikes 1 | . . . 1 . . . . . . . . . . . . . . Average Backups 17 | 4 12 14 23 24 25 25 24 24 24 23 23 16 11 12 9 11 12 Power . | . 1 . . 1 1 1 1 1 1 1 1 . . 1 1 2 . Propulsion 4 | 1 3 4 5 6 6 6 5 6 6 6 8 5 3 . 1 3 1 Utility 6 | . 3 4 9 10 10 10 10 9 8 8 7 5 5 5 3 3 3 Weapon 5 | . 3 4 6 6 7 7 6 7 7 6 6 4 2 4 2 3 6 Tool/Special . | . . . . . . . . . . . . . . . . . . Unused Backups 56 | . 1 . 11 . . . 7 . . 1 6 6 2 2 3 2 15 Power 7 | . . . . . . . . . . . 1 . . . 3 2 1 Propulsion 11 | . 1 . 1 . . . 4 . . . 1 2 1 . . . 1 Utility 16 | . . . 7 . . . 1 . . 1 . 3 . . . . 4 Weapon 22 | . . . 3 . . . 2 . . . 4 1 1 2 . . 9 Tool/Special . | . . . . . . . . . . . . . . . . . . Average Slot Usage (%) 91 | . 99 99 99 99 100 100 99 92 99 98 96 81 90 82 70 79 76 Engine 5 | . 10 13 10 11 11 11 3 . . . . . . . . . . Core 1 | . 2 . . . . . 5 7 6 2 5 5 1 . . . . Reactor 1 | . . . . . . . . . . 2 . . 2 3 2 4 7 Treads 16 | . 28 27 13 9 . . 35 7 6 11 15 10 19 15 7 16 15 Wheel 9 | . . . 19 23 33 33 . 22 19 16 15 18 5 1 6 . . Device 12 | . 9 8 11 11 11 10 9 7 8 5 12 15 14 20 9 12 17 Storage 8 | . 14 14 11 11 11 11 9 7 6 5 5 3 5 5 5 5 4 Processor 2 | . . . . . . . . . 6 2 . . . 4 8 6 5 Hackware 1 | . . . . . . . . 3 6 5 5 5 5 3 4 6 2 Protection 3 | . 4 5 . . . . . 3 10 13 10 5 7 1 3 4 4 Energy Gun 15 | . 13 5 26 23 25 22 20 10 12 15 14 8 14 17 4 7 7 Energy Cannon 1 | . . 13 . . . . . . . . . . . . . 2 . Ballistic Gun 8 | . 13 . 5 9 5 10 15 15 13 11 9 7 9 3 2 4 8 Peak Build Rating 198 | 7 13 14 23 24 24 25 32 38 47 60 76 79 104 126 160 180 198 Average Rating 67 | 5 9 9 17 22 23 24 26 33 44 55 67 68 89 110 110 163 175 On Entrance 52 | . 7 9 11 23 23 24 23 30 38 46 59 69 55 78 120 160 170 Avg Prop Armor Cover (%) 10 | . . . 11 8 . . 8 6 5 10 11 10 8 7 15 4 27 Naked Turns . | . . . . . . . . . . . . . . . . . . Heaviest Build 155 | 14 33 34 97 98 98 100 101 107 112 125 137 134 82 90 90 116 155 Greatest Support 255 | 40 40 40 60 40 36 36 80 36 36 68 127 50 180 158 245 255 255 Greatest Overweight (x) 9 | . . 3 9 4 2 2 2 2 4 3 5 3 3 6 4 . 1 Average Overweight (x) 1 | . . . 4 3 2 2 1 2 2 2 2 1 . . . . . Largest Inventory Capacity 25 | 8 15 15 25 25 25 25 25 25 25 25 25 25 15 15 15 15 15 Average Capacity 19 | 7 14 15 23 25 25 25 25 25 25 25 25 18 14 15 15 15 14 Most Carried 25 | 6 15 15 25 25 25 25 25 25 25 25 25 23 15 15 15 15 15 Average Carried 18 | 4 12 14 23 24 25 25 24 24 24 24 24 17 11 12 9 13 13 Final Capacity 25 | 8 15 15 25 25 25 25 25 25 25 25 25 5 15 15 15 15 5 Final Carried 25 | 5 15 15 25 25 25 25 25 25 25 25 24 5 11 15 15 11 5 Class Distribution -------------------- 39% | Scavenger-Tank 19% | Scavenger-Gunner 19% | Gunner 12% | Mutant 6% | Scavenger-Mutant Dominant Class ---------------- Mutant | -10/Materials Scavenger-Mutant | -10/Mines Gunner | -9/Materials Gunner | -9/Mines Gunner | -9/Exiles Gunner | -8/Mines Scavenger-Gunner | -8/Materials Scavenger-Tank | -7/Factory Scavenger-Tank | -6/Factory Scavenger-Tank | -5/Factory Scavenger-Tank | -4/Factory Scavenger-Tank | -4/Waste Scavenger-Tank | -4/Factory Scavenger-Tank | -3/Research Scavenger-Mutant | -2/Research Scavenger-Tank | -2/Testing Scavenger-Tank | -1/Access Resources | -11 -10 -10 -9 -9 -9 -8 -8 -7 -6 -5 -4 -4 -4 -3 -2 -2 -1 ----------- Run | Yrd Mat Min Mat Min Exi Min Mat Fac Fac Fac Fac Was Fac Res Res Tes Acc Matter Collected 9823 | 367 550 373 672 189 . 216 528 150 269 275 415 . 1100 563 423 971 2762 Remotely . | . . . . . . . . . . . . . . . . . . Salvage Created 19933 | 251 852 185 1633 270 . 399 1025 95 740 331 553 . 3133 1906 1428 1821 5311 Parts 843 | 25 49 5 76 20 . 31 60 3 28 15 22 . 95 64 79 51 220 Haulers Intercepted 19 | . 2 . 5 . . . 4 2 1 1 . . 1 . 1 . 2 Recyclers Shooed 19 | . 4 . 3 . . . . . . . . . 3 2 . . 7 Parts Field Recycled . | . . . . . . . . . . . . . . . . . . Retrieved Matter . | . . . . . . . . . . . . . . . . . . Parts Self-Destructed . | . . . . . . . . . . . . . . . . . . Prevented . | . . . . . . . . . . . . . . . . . . Parts Restored . | . . . . . . . . . . . . . . . . . . Kills | -11 -10 -10 -9 -9 -9 -8 -8 -7 -6 -5 -4 -4 -4 -3 -2 -2 -1 ------- Run | Yrd Mat Min Mat Min Exi Min Mat Fac Fac Fac Fac Was Fac Res Res Tes Acc Combat Hostiles Destroyed 272 | . 16 11 26 8 . 12 17 . 9 5 6 . 39 21 24 24 54 Guns 201 | . 13 1 25 2 . 8 17 . 6 3 5 . 35 17 12 16 41 Cannons 11 | . . . . . . . . . . . . . . . 1 2 8 AOE 48 | . 3 10 . 6 . 4 . . 3 2 . . . . 11 4 5 Classes Destroyed 22 | 3 4 1 2 1 . . 1 . 1 2 1 . . 1 1 3 1 Worker 37 | 2 2 . 3 4 . 2 2 . 3 . 1 . 3 . 5 2 8 Builder 14 | . . . . 1 . 1 1 . . . 2 . 1 1 4 . 3 Tunneler 14 | 8 . . 1 . . 3 . . . . . . . . . . 2 Hauler 19 | . 2 . 5 . . . 4 2 1 1 . . 1 . 1 . 2 Recycler 27 | 1 3 2 2 . . 2 1 . 1 . 1 . 4 2 1 . 7 Mechanic 2 | . . . . . . . . . . . . . . 1 . . 1 Operator 3 | . . . 1 . . . 1 . . . . . . 1 . . . Watcher 18 | . 2 . 4 . . . 1 . 1 . . . 2 1 . . 7 Swarmer 53 | . 3 . 4 5 . 12 3 . . . . . 9 . 8 4 5 Cutter 2 | . . . . . . . . . . 2 . . . . . . . Grunt 109 | . 13 3 13 3 . . 9 . 6 2 1 . 24 7 3 10 15 Brawler 2 | . . . . . . . 1 . 1 . . . . . . . . Researcher 2 | . . . . . . . . . . . . . . . . 2 . Sentry 23 | . . . 9 . . . 4 . 1 . . . 2 1 3 . 3 Specialist 2 | . . . . . . . . . . . . . . . 2 . . Hunter 20 | . . . . . . . . . . . 1 . . 4 6 3 6 Programmer 37 | . . . . . . . . . 1 . 4 . 4 9 2 4 13 Heavy 1 | . . . . . . . . . . 1 . . . . . . . Q-Series 12 | . . . . . . . . . . . . . . . . . 12 Striker 2 | . . . . . . . . . . . . . . . . 2 . Alpha 7 1 | . . . . . . . . . . . . . . . . 1 . Assembled 8 | . . 8 . . . . . . . . . . . . . . . Thug 1 | . . . . 1 . . . . . . . . . . . . . Best Kill Streak 11 | 3 4 3 5 6 . 6 3 1 6 3 2 . 7 4 9 5 11 Combat Bots Only 8 | . 3 3 4 4 . 4 3 . 3 3 2 . 6 4 8 5 7 Max Kills in Single Turn 6 | 1 3 2 2 4 . 3 2 1 6 2 1 . 2 2 5 2 5 Gunslinging 1 | . . . 1 . . . . . . . . . . 1 . . . Exploded 3 | . 3 2 . 2 . 3 . . 3 2 . . . . 3 2 3 Melee . | . . . . . . . . . . . . . . . . . . Uniques/NPCs Destroyed . | . . . . . . . . . . . . . . . . . . Combat | -11 -10 -10 -9 -9 -9 -8 -8 -7 -6 -5 -4 -4 -4 -3 -2 -2 -1 -------- Run | Yrd Mat Min Mat Min Exi Min Mat Fac Fac Fac Fac Was Fac Res Res Tes Acc Hostile Shots Fired 2758 | . 55 45 97 13 . 32 68 33 19 32 68 3 324 186 583 242 958 Missed 777 | . 13 10 26 4 . 14 15 14 7 16 29 . 89 54 190 46 250 Hits 1981 | . 42 35 71 9 . 18 53 19 12 16 39 3 235 132 393 196 708 Melee 5 | . . . . . . . . . . . . 3 . . . 2 . Projectile 1976 | . 42 35 71 9 . 18 53 19 12 16 39 . 235 132 393 194 708 AOE 34 | . . 5 . . . . . . . 3 . . . . . . 26 Critical Strikes 84 | . 1 1 2 1 . 1 1 . . . 3 3 9 6 14 14 28 Actively Blocked 52 | . . . . . . . . . . . . 3 9 6 14 14 6 Part Disruptions 4 | . . . . . . . . . . . . . . 1 . 2 1 Damage Taken 39742 | . 524 645 964 152 . 214 767 118 117 415 826 130 4102 2590 9077 4676 14425 Core 3319 | . 60 116 176 24 . 29 111 . 10 18 18 . 252 149 633 121 1602 Absorbed by Shields 3960 | . . . . . . . . . . . . . . . . . 3960 Reduced by Siege Mode 3402 | . . . . . . . . . . . . . 111 124 1415 526 1226 Redirected to Shielding 255 | . . . . . . . . . . . . . . . 181 74 . Ignored by Resistances 129 | . . . . . . . . . . . . . . 12 45 . 72 Regen/Repaired (Parts) 4360 | . . . 65 . . . . . . . 83 . . . . 995 3217 Core Remaining (%) 75 | 100 . 29 . . . 42 79 100 98 98 . . 76 88 . 48 . Volleys Fired 801 | 29 62 33 97 11 . 29 41 5 25 15 26 . 90 61 40 63 174 Largest 5 | 2 2 2 3 3 . 3 4 4 4 5 5 . 5 5 5 5 5 Hottest 354 | 60 85 125 165 177 . 135 202 171 171 240 256 . 332 354 337 303 300 Shots Fired 2839 | 58 118 38 290 23 . 79 164 17 87 71 121 . 428 233 145 201 766 Gun 2662 | 58 114 7 289 17 . 75 164 17 86 70 120 . 428 229 119 170 699 Cannon 120 | . . 4 1 . . . . . . . . . . 4 18 29 64 Launcher 57 | . 4 27 . 6 . 4 . . 1 1 1 . . . 8 2 3 Special . | . . . . . . . . . . . . . . . . . . Kinetic 1141 | 29 58 1 33 4 . 25 61 10 44 28 50 . 178 44 71 52 453 Thermal 1570 | 29 56 10 257 13 . 50 103 7 42 42 70 . 250 167 48 130 296 Explosive 57 | . 4 27 . 6 . 4 . . 1 1 1 . . . 8 2 3 Electromagnetic 71 | . . . . . . . . . . . . . . 22 18 17 14 Robot Hit Streak 81 | 8 17 8 24 4 . 4 14 5 21 9 9 . 28 28 30 28 81 Robot Miss Streak 6 | 3 3 2 3 2 . 4 3 2 3 3 5 . 3 6 4 3 4 Penetration Max 1 | . . . . . . . . . . . . . . 1 . . 1 Secondary Targets 35 | . 1 . 2 . . 3 4 . . . . . 11 3 2 3 6 Max Gunslinging Chain 1 | . 1 . 1 . . 1 1 . . . . . 1 1 1 1 1 Shots Hit Robots 1947 | 38 80 14 202 8 4 27 104 11 64 47 66 . 302 166 84 161 569 Core Hits 840 | 12 43 24 67 16 . 20 46 3 31 19 26 . 123 61 69 67 213 Critical Kills 17 | . . . . . . . . . . . . . . 7 3 2 5 Critical Parts Destroyed 41 | . . . . . . . . . 1 . . . 1 10 7 4 18 Critical Strikes 171 | . . . 20 . . 1 9 . 4 4 . . 17 33 13 19 51 Burn 94 | . . . 20 . . 1 9 . 3 4 . . 16 15 1 9 16 Destroy 64 | . . . . . . . . . 1 . . . 1 18 10 5 29 Blast 9 | . . . . . . . . . . . . . . . 1 2 6 Corrupt 2 | . . . . . . . . . . . . . . . 1 1 . Smash 2 | . . . . . . . . . . . . . . . . 2 . Melee Attacks 56 | . . . . . 4 . . 1 . . . . 6 . 14 12 19 Impact 51 | . . . . . . . . . . . . . 6 . 14 12 19 Slashing . | . . . . . . . . . . . . . . . . . . Piercing . | . . . . . . . . . . . . . . . . . . Sneak Attacks 14 | . . . . . 4 . . 1 . . . . . . 3 1 5 Combat Hostiles . | . . . . . . . . . . . . . . . . . . Follow-up Attacks . | . . . . . . . . . . . . . . . . . . Damage Inflicted 52261 | 452 1550 1053 2856 703 . 640 1701 162 1882 871 1300 . 6531 4208 4886 5173 18293 Guns 40151 | 452 1040 64 2839 109 . 388 1624 162 1064 788 1243 . 6471 4125 1908 3554 14320 Cannons 2974 | . . 69 17 . . . . . . . . . . 75 255 865 1693 Explosions 7425 | . 452 872 . 594 . 252 . . 818 83 32 . . . 2466 432 1424 Melee 1198 | . . . . . . . . . . . . . . . 257 303 638 Ramming 513 | . 58 48 . . . . 77 . . . 25 . 60 8 . 19 218 Kinetic 18146 | 252 528 . 402 35 . 173 535 87 567 294 537 . 1815 848 1090 897 10086 Thermal 24242 | 200 512 133 2454 74 . 215 1089 75 1315 494 706 . 4656 2839 837 2937 5706 Explosive 6607 | . 452 872 . 594 . 252 . . . 83 32 . . . 2466 432 1424 Electromagnetic 1555 | . . . . . . . . . . . . . . 513 236 585 221 Impact 1198 | . . . . . . . . . . . . . . . 257 303 638 Slashing . | . . . . . . . . . . . . . . . . . . Piercing . | . . . . . . . . . . . . . . . . . . Highest Corruption 21 | . . . . . . . . . . . 3 3 7 9 10 21 21 Average Corruption 7 | . . . . . . . . . . . 2 3 4 5 7 15 7 Corruption Purged 12 | . . . . . . . . . . . . . . . . 2 10 Corruption Blocked 4 | . . . . . . . . . . . . . . . . . 4 Effects 226 | . . . . . . . . . . . 1 1 37 24 14 51 98 Message Errors 55 | . . . . . . . . . . . 1 . 11 5 4 14 20 Matter Fused 47 | . . . . . . . . . . . . . 4 10 3 9 21 Heat Flow Errors 22 | . . . . . . . . . . . . . 7 2 . 4 9 Energy Discharges 32 | . . . . . . . . . . . . . 6 3 3 6 14 Parts Rejected 6 | . . . . . . . . . . . . . . . 1 3 2 Parts Fused 3 | . . . . . . . . . . . . . . . . 1 2 Data Loss (minor) 19 | . . . . . . . . . . . . 1 2 1 2 5 8 Data Loss (major) 8 | . . . . . . . . . . . . . 2 2 . 1 3 Misfires 4 | . . . . . . . . . . . . . . . . 1 3 Alerts 2 | . . . . . . . . . . . . . . . . . 2 Misdirections 3 | . . . . . . . . . . . . . . . . . 3 Weapon Failures 25 | . . . . . . . . . . . . . 5 1 1 7 11 Overload Shots . | . . . . . . . . . . . . . . . . . . Overflow Damage 876 | . 21 20 . 41 . 11 17 . 97 . . . . . 138 190 341 Projectiles 103 | . . . . . . . . . . . . . . . . . 103 Explosions 385 | . 21 20 . 41 . 11 . . 97 . . . . . 138 13 44 Melee 388 | . . . . . . . 17 . . . . . . . . 177 194 Knockbacks 24 | . . 1 . . . . 2 . . . . . . . 1 3 17 Impact 8 | . . 1 . . . . 2 . . . . . . . . 2 3 Kinetic 14 | . . . . . . . . . . . . . . . 1 1 12 Secondary 2 | . . . . . . . . . . . . . . . . . 2 Self-Inflicted Damage 331 | . . 47 . 42 . 69 . . . . 8 . . . 69 81 15 Shots 10 | . . 2 . 2 . 2 . . . . 1 . . . 1 2 . Rammed 52 | . 11 6 . . . . 4 . . . 3 . 8 1 . 2 17 Targets Rammed 57 | . 12 7 . . . . 6 . . . 3 . 9 1 . 2 17 Kicked . | . . . . . . . . . . . . . . . . . . Crushed 5 | . 1 1 . . . . 2 . . . . . 1 . . . . Highest Temperature 490 | 2 315 363 363 102 . 300 345 142 318 340 399 . 490 . 407 487 315 Average Temperature 94 | 2 90 146 99 38 . 78 112 66 116 132 94 . 131 . 127 110 41 Received Heat Transfer 4485 | . 270 156 342 66 . . 414 18 30 63 395 . 819 138 531 432 811 Effects 22 | . . 3 4 . . . 1 . . 1 1 . 3 . 1 5 3 Shutdowns 4 | . . . 2 . . . . . . . 1 . . . . 1 . Energy Bleed 3 | . . 1 1 . . . . . . . . . 1 . . . . Interference 9 | . . 2 . . . . . . . . . . . . . 4 3 Matter Decay 2 | . . . . . . . 1 . . . . . 1 . . . . Short Circuit 3 | . . . 1 . . . . . . 1 . . . . 1 . . Damage (minor) 1 | . . . . . . . . . . . . . 1 . . . . Siege Activations 45 | . . . . . . . . . . . . . 7 3 4 7 24 Total Turns 1197 | . . . . . . . . . . . . . 180 40 72 203 702 Longest Duration 119 | . . . . . . . . . . . . . 43 22 40 47 119 Martial Activations . | . . . . . . . . . . . . . . . . . . Shielding Activations . | . . . . . . . . . . . . . . . . . . Robots Disrupted . | . . . . . . . . . . . . . . . . . . Combat Hostiles . | . . . . . . . . . . . . . . . . . . Robots Corrupted 5 | . . . . . . . 1 . . . . . . 1 . 1 2 Combat Hostiles 2 | . . . . . . . . . . . . . . 1 . 1 . Parts Fried 10 | . . . . . . . 1 . . . . . . 3 . 2 4 Impact Corruptions 12 | . . . . . . . 1 . . . . . . . . 3 8 Robots Melted 13 | . . . 1 . . . 1 . . . 1 . 5 3 . 1 1 Combat Hostiles 10 | . . . 1 . . . . . . . 1 . 4 3 . 1 . Parts Melted 164 | . 1 . 25 . . 1 3 1 5 2 8 . 34 39 2 20 23 Heat Transferred 51771 | 450 1192 296 8288 185 . 629 3404 185 1898 1406 1406 . 9799 6467 1477 4662 10027 Parts Sabotaged . | . . . . . . . . . . . . . . . . . . Parts Stolen . | . . . . . . . . . . . . . . . . . . Parts Stripped . | . . . . . . . . . . . . . . . . . . Power Chain Reactions . | . . . . . . . . . . . . . . . . . . Alert | -11 -10 -10 -9 -9 -9 -8 -8 -7 -6 -5 -4 -4 -4 -3 -2 -2 -1 ------- Run | Yrd Mat Min Mat Min Exi Min Mat Fac Fac Fac Fac Was Fac Res Res Tes Acc Maximum Alert Level 4 | . 1 . . . . 1 . . 1 . . . 2 1 2 2 4 Low Security (%) 66 | 100 75 100 100 100 . 91 100 100 95 100 100 100 21 63 14 . 6 Level 1 21 | . 24 . . . . 8 . . 4 . . . 60 36 49 66 48 Level 2 9 | . . . . . . . . . . . . . 17 . 35 33 31 Level 3 . | . . . . . . . . . . . . . . . . . 4 Level 4 1 | . . . . . . . . . . . . . . . . . 8 Level 5 . | . . . . . . . . . . . . . . . . . . High Security . | . . . . . . . . . . . . . . . . . . Max Security . | . . . . . . . . . . . . . . . . . . Peak Influence 1337 | 10 278 95 182 145 . 219 107 7 214 112 52 17 513 295 604 609 1337 Initial 345 | . . 95 . 51 . . 57 . . 53 27 12 . 236 80 315 345 Average 175 | 2 82 8 113 55 . 85 29 . 94 60 12 3 275 182 352 361 475 Influence Increases 9699 | 55 498 171 833 265 . 375 549 17 401 269 218 15 1085 569 1382 787 2210 Destroy 0b10 Robot/C 5400 | . 320 60 520 160 . 240 340 . 180 160 140 . 780 420 480 520 1080 Destroy 0b10 Robot/NC 675 | 55 45 10 80 25 . 40 50 10 30 10 20 . 55 30 55 10 150 Destroy Leader 1114 | . 68 20 158 20 . 30 90 4 44 32 40 . 126 92 82 60 248 Allied During Kill 59 | . . . . 9 . . . . 28 22 . . . . . . . Successful Hack 225 | . 12 . 56 . . . 38 3 10 7 . . 10 . . 29 60 Select Force Hacks 30 | . 30 . . . . . . . . . . . . . . . . Disable Machine 240 | . . 15 15 15 . . 15 . 75 . . . 30 . 15 30 30 Destroy Structure 876 | . 23 66 4 36 . 20 1 . 34 8 18 . 24 12 255 138 237 Partial Spotted 45 | . . . . . . . . . . . . 15 . . . . 30 Lose Combat Pursuer 1035 | . . . . . . 45 15 . . 30 . . 60 15 495 . 375 Influence Decreases 8362 | 55 253 416 701 364 33 227 697 17 292 322 238 51 634 877 963 773 1449 Entered New Map 1220 | . . 150 . 81 33 . 91 . . 56 29 24 . 215 63 247 231 Time Decay 5391 | 55 243 236 631 273 . 217 556 17 252 206 165 20 484 482 410 416 728 Search Patrol Dispatched 100 | . . . . . . . . . . . . . . . 100 . . Lost Part 1361 | . 10 30 70 10 . . 40 . . . 24 7 150 180 390 110 340 Lost Ally 140 | . . . . . . 10 10 . 40 60 20 . . . . . . Purge Threat 150 | . . . . . . . . . . . . . . . . . 150 Squads Dispatched 75 | . 2 . 1 . . . 4 3 3 8 5 . 7 4 10 9 19 Investigation 12 | . 2 . 1 . . . 1 . 1 1 1 . 1 1 1 1 1 Extermination 22 | . . . . . . . . 1 1 . 2 . 2 2 3 2 9 Reinforcement 25 | . . . . . . . 2 1 1 4 2 . 3 1 3 4 4 Assault 4 | . . . . . . . . . . . . . 1 . . 2 1 Garrison 12 | . . . . . . . 1 1 . 3 . . . . 3 . 4 Intercept . | . . . . . . . . . . . . . . . . . . Searches Triggered 1 | . . . . . . . . . . . . . . . 1 . . Construction Impeded 3 | . . . . . . . . . . 1 . . 1 . 1 . . Haulers Reinforced 5 | . . . . . . . . . 1 1 . . 1 . . . 2 Active Scanning Responses . | . . . . . . . . . . . . . . . . . . Cargo Convoy Interrupts 1 | . . . . . . . . . . . . . 1 . . . . Stealth | -11 -10 -10 -9 -9 -9 -8 -8 -7 -6 -5 -4 -4 -4 -3 -2 -2 -1 --------- Run | Yrd Mat Min Mat Min Exi Min Mat Fac Fac Fac Fac Was Fac Res Res Tes Acc Distress Signals 19 | . . 1 2 . . . . 1 2 . 1 . 2 . 5 2 3 Communications Jammed . | . . . . . . . . . . . . . . . . . . Distress Signals . | . . . . . . . . . . . . . . . . . . Times Spotted 499 | . 26 36 41 9 . 14 20 10 17 16 25 6 53 25 59 31 111 Peak Tracking Total 22 | . 4 22 5 4 . 4 4 3 4 5 5 6 8 4 14 5 13 Tactical Retreats 36 | . . 2 . . . 2 1 . . 1 . . 3 1 13 . 13 Traps | -11 -10 -10 -9 -9 -9 -8 -8 -7 -6 -5 -4 -4 -4 -3 -2 -2 -1 ------- Run | Yrd Mat Min Mat Min Exi Min Mat Fac Fac Fac Fac Was Fac Res Res Tes Acc Traps Triggered 13 | . 2 . 1 . . . . . . . 1 . . 1 6 . 2 Indirectly . | . . . . . . . . . . . . . . . . . . Trap Hack Attempts . | . . . . . . . . . . . . . . . . . . Triggered . | . . . . . . . . . . . . . . . . . . Disarmed . | . . . . . . . . . . . . . . . . . . Reprogrammed . | . . . . . . . . . . . . . . . . . . Reused . | . . . . . . . . . . . . . . . . . . Traps Extracted . | . . . . . . . . . . . . . . . . . . Installed . | . . . . . . . . . . . . . . . . . . Triggered . | . . . . . . . . . . . . . . . . . . Most Traps Carried 3 | . . 3 3 3 3 3 3 3 3 3 3 3 . . . . . Machines | -11 -10 -10 -9 -9 -9 -8 -8 -7 -6 -5 -4 -4 -4 -3 -2 -2 -1 ---------- Run | Yrd Mat Min Mat Min Exi Min Mat Fac Fac Fac Fac Was Fac Res Res Tes Acc Machines Disabled 17 | . . 1 1 1 . . 1 . 5 . . . 2 . 1 3 2 Max in Single Turn 5 | . . 1 1 1 . . 1 . 5 . . . 1 . 1 1 1 Garrison Access 1 | . . . . . . . . . . . . . 1 . . . . Machines Repaired . | . . . . . . . . . . . . . . . . . . Machines Dismantled . | . . . . . . . . . . . . . . . . . . Machines Sabotaged . | . . . . . . . . . . . . . . . . . . Overloaded Fab Kills . | . . . . . . . . . . . . . . . . . . Hacking | -11 -10 -10 -9 -9 -9 -8 -8 -7 -6 -5 -4 -4 -4 -3 -2 -2 -1 --------- Run | Yrd Mat Min Mat Min Exi Min Mat Fac Fac Fac Fac Was Fac Res Res Tes Acc Machines Accessed 78 | . 8 1 17 . 2 2 15 3 3 1 4 . 6 2 . 6 8 Terminals 44 | . 6 . 12 . . 2 8 3 1 . 1 . 2 1 . 4 4 Fabricators 7 | . . . . . . . . . 1 . . . 2 1 . 1 2 Repair Stations 5 | . . . 1 . . . 2 . . . 1 . 1 . . . . Recycling Units 8 | . 2 . 2 . . . 2 . 1 . . . . . . . 1 Scanalyzers 5 | . . . 2 . . . 2 . . . 1 . . . . . . Garrison Access 6 | . . . . . . . 1 . . 1 1 . 1 . . 1 1 Total Hacks 220 | . 25 1 50 . 33 3 42 5 3 4 10 . 8 3 . 19 14 Successful 134 | . 18 1 32 . 33 2 20 2 1 3 5 . 3 . . 8 6 Failed 85 | . 7 . 18 . . 1 22 3 2 1 4 . 5 3 . 11 8 Catastrophic 11 | . . . 1 . . . . 1 2 . 1 . 2 2 . 1 1 Database Lockouts 1 | . . . . . . . . . . . 1 . . . . . . Manual 117 | . 33 . 33 . . 3 16 4 2 4 4 . 5 2 . 4 7 Terminals 108 | . 19 . 33 . . 3 26 5 1 . 1 . 3 1 . 10 6 Fabricators 14 | . . . . . . . . . 1 . . . 2 2 . 5 4 Repair Stations 12 | . . . 3 . . . 5 . . . 2 . 2 . . . . Recycling Units 20 | . 6 . 7 . . . 4 . 1 . . . . . . . 2 Scanalyzers 14 | . . . 7 . . . 4 . . . 3 . . . . . . Garrison Access 18 | . . . . . . . 3 . . 4 4 . 1 . . 4 2 Terminal Hacks 57 | . 4 1 4 . 33 . 5 1 . . . . . . . 6 3 Record 33 | . . . . . 33 . . . . . . . . . . . . Part Schematic 2 | . . . 1 . . . . . . . . . . . . 1 . Robot Analysis 1 | . . . 1 . . . . . . . . . . . . . . Prototype ID Bank 3 | . 2 . . . . . 1 . . . . . . . . . . Open Door 2 | . . 1 . . . . . . . . . . . . . 1 . Open DSF 1 | . . . . . . . . 1 . . . . . . . . . Level Access Points 1 | . . . . . . . . . . . . . . . . . 1 Branch Access Points 1 | . . . . . . . 1 . . . . . . . . . . Terminal Index 2 | . 1 . 1 . . . . . . . . . . . . . . Alert Level 3 | . . . . . . . 1 . . . . . . . . 1 1 Unreport Threat 1 | . . . . . . . . . . . . . . . . . 1 Locate Traps 5 | . 1 . 1 . . . 2 . . . . . . . . 1 . Zone Layout 1 | . . . . . . . . . . . . . . . . 1 . Protovariant Controls 1 | . . . . . . . . . . . . . . . . 1 . Fabricator Hacks 1 | . . . . . . . . . . . . . . . . 1 . Network Status 1 | . . . . . . . . . . . . . . . . 1 . Repair Station Hacks 6 | . . . 2 . . . 2 . . . 2 . . . . . . Scan Component 4 | . . . 1 . . . 2 . . . 1 . . . . . . Repair 2 | . . . 1 . . . . . . . 1 . . . . . . Recycling Unit Hacks 7 | . 2 . 2 . . . 2 . . . . . . . . . 1 Retrieve Components 7 | . 2 . 2 . . . 2 . . . . . . . . . 1 Scanalyzer 10 | . . . 6 . . . 2 . . . 2 . . . . . . Insert Component 2 | . . . 2 . . . . . . . . . . . . . . Analyze 2 | . . . 2 . . . . . . . . . . . . . . Retrieve Study 6 | . . . 2 . . . 2 . . . 2 . . . . . . Garrison Access Hacks 1 | . . . . . . . . . . . . . 1 . . . . Seal Access 1 | . . . . . . . . . . . . . 1 . . . . Unauthorized Hacks 52 | . 12 . 18 . . 2 9 1 1 3 1 . 2 . . 1 2 Terminals 34 | . 10 . 15 . . 2 6 1 . . . . . . . . . Track 4 | . . . 1 . . 2 1 . . . . . . . . . . Assimilate 5 | . . . 5 . . . . . . . . . . . . . . Botnet 7 | . 4 . 2 . . . 1 . . . . . . . . . . Operators 3 | . 1 . 1 . . . 1 . . . . . . . . . . Skim 15 | . 5 . 6 . . . 3 1 . . . . . . . . . Fabricators 5 | . . . . . . . . . 1 . . . 2 . . 1 1 Liberate 5 | . . . . . . . . . 1 . . . 2 . . 1 1 Repair Stations . | . . . . . . . . . . . . . . . . . . Recycling Units 7 | . 2 . 3 . . . 2 . . . . . . . . . . Reject 2 | . . . 1 . . . 1 . . . . . . . . . . Mask 4 | . 1 . 2 . . . 1 . . . . . . . . . . Tunnel 1 | . 1 . . . . . . . . . . . . . . . . Scanalyzers . | . . . . . . . . . . . . . . . . . . Garrison Access 6 | . . . . . . . 1 . . 3 1 . . . . . 1 Decoy 3 | . . . . . . . 1 . . 1 . . . . . . 1 Reprogram 2 | . . . . . . . . . . 1 1 . . . . . . Intercept 1 | . . . . . . . . . . 1 . . . . . . . Data Cores Recovered 3 | . . . 1 . . . . 1 . . 1 . . . . . . Used . | . . . . . . . . . . . . . . . . . . Hacking Detections 65 | . 7 . 15 . . 2 13 2 3 1 3 . 4 2 . 5 8 Full Trace Events 6 | . 1 . 2 . . . 1 . . . . . 1 . . 1 . Feedback Events . | . . . . . . . . . . . . . . . . . . Feedback Blocked . | . . . . . . . . . . . . . . . . . . Robot Schematics Acquired . | . . . . . . . . . . . . . . . . . . Robots Built . | . . . . . . . . . . . . . . . . . . Authchips . | . . . . . . . . . . . . . . . . . . Time . | . . . . . . . . . . . . . . . . . . Total Robot Build Rating . | . . . . . . . . . . . . . . . . . . Part Schematics Acquired 9 | . . . 3 . . . . . . . . . . . . 6 . Parts Built . | . . . . . . . . . . . . . . . . . . Authchips . | . . . . . . . . . . . . . . . . . . Time . | . . . . . . . . . . . . . . . . . . Total Part Build Rating . | . . . . . . . . . . . . . . . . . . Part Studies Acquired 6 | . . . 2 . . . 2 . . . 2 . . . . . . Parts Repaired 2 | . . . 1 . . . . . . . 1 . . . . . . Time 64 | . . . 32 . . . . . . . 32 . . . . . . Parts Recycled . | . . . . . . . . . . . . . . . . . . Recycled Matter . | . . . . . . . . . . . . . . . . . . Retrieved Matter . | . . . . . . . . . . . . . . . . . . Retrieved Components 57 | . 16 . 11 . . . 20 . . . . . . . . . 10 Parts Scanalyzed 2 | . . . 2 . . . . . . . . . . . . . . Part Schematics Acquired 2 | . . . 2 . . . . . . . . . . . . . . Parts Damaged . | . . . . . . . . . . . . . . . . . . Bothacking | -11 -10 -10 -9 -9 -9 -8 -8 -7 -6 -5 -4 -4 -4 -3 -2 -2 -1 ------------ Run | Yrd Mat Min Mat Min Exi Min Mat Fac Fac Fac Fac Was Fac Res Res Tes Acc Used RIF Installer . | . . . . . . . . . . . . . . . . . . Robots Hacked 5 | . . . . . 4 . . 1 . . . . . . . . . Non-combat 3 | . . . . . 3 . . . . . . . . . . . . Combat 2 | . . . . . 1 . . 1 . . . . . . . . . Robot Hacks Applied 5 | . . . . . 4 . . 1 . . . . . . . . . parse_system 5 | . . . . . 4 . . 1 . . . . . . . . . Relay Couplers Released 8 | . . . . . . . . . . . 4 . . . . . 4 Programmers 8 | . . . . . . . . . . . 4 . . . . . 4 Fabnet Peak Effective % . | . . . . . . . . . . . . . . . . . . Robots Rewired . | . . . . . . . . . . . . . . . . . . Allies Hacked 1 | . . . . . . . . . 1 . . . . . . . . Hacks Repelled . | . . . . . . . . . . . . . . . . . . Allies | -11 -10 -10 -9 -9 -9 -8 -8 -7 -6 -5 -4 -4 -4 -3 -2 -2 -1 -------- Run | Yrd Mat Min Mat Min Exi Min Mat Fac Fac Fac Fac Was Fac Res Res Tes Acc Total Allies 9 | . . . 2 1 . . . . 3 2 1 . . . . . . Largest Group 3 | . . . 2 3 2 2 1 . 3 3 1 . . . . . . Highest-Rated Group 82 | . . . 20 51 20 20 10 . 60 44 82 . . . . . . Highest-Rated Ally 82 | . . . 10 31 10 10 10 . 20 20 82 . . . . . . Total Orders . | . . . . . . . . . . . . . . . . . . Ally Attacks 40 | . . . . 1 . . . . 4 31 4 . . . . . . Total Damage 580 | . . . . 20 . . . . 45 402 113 . . . . . . Kills 5 | . . . . . . . . . . 4 1 . . . . . . Allies Corrupted . | . . . . . . . . . . . . . . . . . . Allies Melted . | . . . . . . . . . . . . . . . . . . Intel | -11 -10 -10 -9 -9 -9 -8 -8 -7 -6 -5 -4 -4 -4 -3 -2 -2 -1 ------- Run | Yrd Mat Min Mat Min Exi Min Mat Fac Fac Fac Fac Was Fac Res Res Tes Acc Active Infowar (turns) 11197 | 1 967 980 1789 929 739 732 633 670 581 . 586 . . 48 . . 2542 IFF 513 | . . . . . . . . . . . . . . . . . 513 Terrain 794 | . 738 . . . . . . 56 . . . . . . . . . Seismic 10281 | 1 229 980 1789 929 739 732 633 670 581 . 586 . . . . . 2412 Machine Analysis 70 | . . . . . . . . . . . . . . 48 . . 22 Robot Analysis Total 1 | . . . 1 . . . . . . . . . . . . . . Derelict Logs Recovered 3 | . . 2 . 1 . . . . . . . . . . . . . Drone Launches . | . . . . . . . . . . . . . . . . . . Drone Recoveries . | . . . . . . . . . . . . . . . . . . Exploration | -11 -10 -10 -9 -9 -9 -8 -8 -7 -6 -5 -4 -4 -4 -3 -2 -2 -1 ------------- Run | Yrd Mat Min Mat Min Exi Min Mat Fac Fac Fac Fac Was Fac Res Res Tes Acc Turns Passed 22497 | 268 1427 1661 3103 937 739 1201 2387 670 674 426 652 132 1404 1258 996 1004 3558 Spaces Moved 11470 | 97 709 691 1644 610 599 800 1047 486 427 264 370 125 561 570 583 379 1508 Core 336 | 6 . . . . . . . . . . . . . . . . 330 Treads 5237 | 91 709 657 36 40 . . 1006 . . 2 13 . 384 552 190 379 1178 Legs 3 | . . . . . . . . . . . . . . . 3 . . Wheels 5894 | . . 34 1608 570 599 800 41 486 427 262 357 125 177 18 390 . . Hover . | . . . . . . . . . . . . . . . . . . Flight . | . . . . . . . . . . . . . . . . . . Fastest Speed 50 | 50 160 95 100 120 120 120 110 110 110 125 107 91 91 115 70 155 50 Average Speed 142 | 153 160 156 137 145 120 120 199 110 119 126 117 104 143 159 120 155 137 Slowest Speed 330 | 160 160 160 320 240 120 120 225 110 140 330 170 121 240 270 270 158 270 Overloaded Moves . | . . . . . . . . . . . . . . . . . . Propulsion Burnouts . | . . . . . . . . . . . . . . . . . . Robots Hopped . | . . . . . . . . . . . . . . . . . . Potential Cave-ins 9 | . . . . . . . . . . . . . . . 4 . 5 Cave-ins Triggered 1 | . . . . . . . . . . . . . . . . . 1 Exploration Rate (%) 50 | 6 99 96 98 98 79 98 77 15 14 10 18 80 14 14 25 37 33 Regions Visited 17 Branch Regions 5 Pre-discovered Areas 5 | . 1 . 1 2 1 . . . . . . . . . . . . Known Exits Taken 3 | . . 1 . . . 1 1 . . . . . . . . . . Unknown Exits Taken 12 | 1 1 . 1 1 1 . . 1 1 1 . . 1 1 1 1 . Scrap Searched 6 | . . 2 . 1 . 3 . . . . . . . . . . . Spaces Dug 42 | . . . . . . . . . . . . . 6 1 11 5 19 Terrain Destroyed 491 | . 20 91 . 39 . 20 . . 53 4 9 . 6 7 92 43 107 Melee 27 | . . . . . . . . . . . . . 6 . 9 5 7 Projectile 68 | . . . . . . . . . . . 4 . . 7 12 7 38 AOE 387 | . 20 91 . 39 . 20 . . 53 4 5 . . . 70 31 54 Terrain Rammed . | . . . . . . . . . . . . . . . . . . Walls Destroyed . | . . . . . . . . . . . . . . . . . . Machines Disabled . | . . . . . . . . . . . . . . . . . . Actions | -11 -10 -10 -9 -9 -9 -8 -8 -7 -6 -5 -4 -4 -4 -3 -2 -2 -1 --------- Run | Yrd Mat Min Mat Min Exi Min Mat Fac Fac Fac Fac Was Fac Res Res Tes Acc Total 15778 | 155 876 1223 2262 634 616 982 1269 609 542 326 526 126 946 763 764 631 2528 Wait 2629 | 15 58 470 409 2 12 148 100 102 79 17 88 . 211 80 34 134 670 Move 11453 | 96 708 690 1643 609 598 799 1046 485 426 263 370 124 560 569 582 378 1507 Hop . | . . . . . . . . . . . . . . . . . . Pick Up 199 | 5 13 5 34 1 . . 18 2 3 6 9 . 25 15 25 8 30 Fast Attach 100 | 6 4 2 5 . . . 1 2 . 1 3 . 4 15 29 10 18 Attach 113 | 2 . 3 9 1 . . 5 2 2 3 4 1 17 13 22 8 21 Detach 26 | 1 . . 1 . . . . 1 . 1 . . 4 4 3 4 7 Swap 202 | 1 12 9 44 10 2 6 24 7 6 11 14 1 13 2 2 7 31 Drop 141 | . 7 4 20 . . . 28 2 1 9 9 . 7 3 13 5 33 Fire 801 | 29 62 33 97 11 . 29 41 5 25 15 26 . 90 61 40 63 174 Melee 56 | . . . . . 4 . . 1 . . . . 6 . 14 12 19 Ram 6 | . . . . . . . . . . . . . . . . . 6 Kick . | . . . . . . . . . . . . . . . . . . Crush 51 | . 12 7 . . . . 6 . . . 3 . 9 1 . 2 11 Escape Stasis 1 | . . . . . . . . . . . . . . . . . 1 Rewire . | . . . . . . . . . . . . . . . . . . Trap . | . . . . . . . . . . . . . . . . . . Miscellaneous . | . . . . . . . . . . . . . . . . . . Route ------- -11/Scrapyard -10/Materials (discovered 5 exits: *Mat x3 / *Min / *Sub) -10/Mines (discovered 3 exits: *Mat x2 / Sub) -9/Materials (discovered 4 exits: *Mat x3 / [*Min]) -9/Mines (discovered 3 exits: *Mat x2 / *Exi) -9/Exiles (discovered 2 exits: *Min x2) -8/Mines (discovered 2 exits: *Mat x2) -8/Materials (discovered 3 exits: *Fac x3) -7/Factory (discovered 2 exits: *Fac x2) -6/Factory (discovered 2 exits: *Fac x2) -5/Factory -4/Factory -4/Waste -4/Factory -3/Research -2/Research -2/Testing -1/Access (discovered 1 exit: Sur) History --------- Turn | Location | Event 3 | -11/Scrapyard | Discovered new exit (range 15) 269 | -11/Scrapyard | Entered Materials 308 | -10/Materials | Build established: Mutant 679 | -10/Materials | Discovered new exit (range 13) 836 | -10/Materials | Discovered new exit (range 14) 866 | -10/Materials | Learned Storage interactive machine intel 918 | -10/Materials | Loaded intel: 17 trap records 929 | -10/Materials | Learned location of 1 exit from Storage 931 | -10/Materials | Learned 4 Subcaves zone layouts 936 | -10/Materials | Learned location of 2 exits from Mines 950 | -10/Materials | Identified exit to Subcaves 950 | -10/Materials | Identified exit to Materials 1461 | -10/Materials | Discovered exit to Materials (range 15) 1696 | -10/Materials | Entered Mines 1697 | -10/Mines | Assembled infested the area 1702 | -10/Mines | Assisted by a Guerilla fighting off Assembled 1713 | -10/Mines | Core integrity fell below 50% 2425 | -10/Mines | Build established: Scavenger-Mutant 2445 | -10/Mines | Learned 2 Materials zone layouts 2469 | -10/Mines | Learned location of 1 exit from Materials 2604 | -10/Mines | Found a hidden stash of uninstalled traps 2614 | -10/Mines | Discovered exit to Materials (range 5) 2873 | -10/Mines | Met a Derelict who couldn't figure out how to use a Trap Extractor 3357 | -10/Mines | Entered Materials 3357 | -9/Materials | Evolved 2 slots: Propulsion x1, Weapon x1 3358 | -9/Materials | Identified exit to Materials 3398 | -9/Materials | Repaired Particle Gun 3716 | -9/Materials | Build established: Scavenger-Gunner 3743 | -9/Materials | Discovered new exit (range 8) 4083 | -9/Materials | Discovered exit to Materials (range 6) 4520 | -9/Materials | Build established: Gunner 4721 | -9/Materials | Learned Storage emergency access door positions 4737 | -9/Materials | Learned Storage stockpile data 4748 | -9/Materials | Loaded intel: 12 terminal locations 4755 | -9/Materials | Learned location of 2 exits from Materials 4795 | -9/Materials | Learned Storage non-interactive machine intel 6460 | -9/Materials | Entered Mines 6460 | -9/Mines | Accompanied by 2 allies 6555 | -9/Mines | Deemed a non-threat by the Exiles lab entrance 6555 | -9/Mines | Discovered new exit (range 5) 6590 | -9/Mines | Escorted by a lone wolf Derelict 6610 | -9/Mines | Learned location of Storage (-7) 7331 | -9/Mines | Build established: Scavenger-Gunner 7397 | -9/Mines | Entered Exiles 7397 | -9/Exiles | Accompanied by 2 allies 7426 | -9/Exiles | Met 8R-AWN 7447 | -9/Exiles | Met EX-HEX 7480 | -9/Exiles | Met EX-BIN 7601 | -9/Exiles | Learned location of Zion (-7) 7603 | -9/Exiles | Met EX-DEC 7845 | -9/Exiles | Visited The Gauntlet 7958 | -9/Exiles | Discovered new exit (range 10) 8036 | -9/Exiles | Build established: Gunner 8112 | -9/Exiles | Discovered new exit (range 14) 8136 | -9/Exiles | Entered Mines 8136 | -8/Mines | Accompanied by 2 allies 8709 | -8/Mines | Core integrity fell below 50% 8903 | -8/Mines | Discovered exit to Materials (range 13) 9337 | -8/Mines | Entered Materials 9337 | -8/Materials | Accompanied by 1 ally 9337 | -8/Materials | Evolved 2 slots: Propulsion x1, Weapon x1 9338 | -8/Materials | Identified exit to Factory 9557 | -8/Materials | Garrison activated, responded to threat 9646 | -8/Materials | Build established: Scavenger-Gunner 10170 | -8/Materials | Discovered exit to Factory (range 3) 11605 | -8/Materials | Met 7R-MNS 11724 | -8/Materials | Entered Factory 11724 | -7/Factory | Evolved 2 slots: Utility x2 11725 | -7/Factory | Caught up to 7R-MNS 11825 | -7/Factory | Identified exit to DSF 11971 | -7/Factory | Discovered new exit (range 10) 12308 | -7/Factory | Garrison activated, responded to threat 12327 | -7/Factory | Build established: Scavenger-Tank 12372 | -7/Factory | Discovered new exit (range 11) 12394 | -7/Factory | Entered another Factory area 12394 | -6/Factory | Evolved 2 slots: Utility x2 12395 | -6/Factory | Caught up to 7R-MNS 12640 | -6/Factory | Discovered new exit (range 10) 13042 | -6/Factory | Discovered new exit (range 15) 13068 | -6/Factory | Entered another Factory area 13068 | -5/Factory | Accompanied by 1 ally 13068 | -5/Factory | Evolved 2 slots: Propulsion x1, Weapon x1 13069 | -5/Factory | Caught up to 7R-MNS 13190 | -5/Factory | Garrison activated, responded to threat 13471 | -5/Factory | Discovered new exit (range 14) 13494 | -5/Factory | Entered another Factory area 13494 | -4/Factory | Evolved 2 slots: Propulsion x1, Utility x1 13495 | -4/Factory | Caught up to 7R-MNS 13510 | -4/Factory | Central database locked down 13602 | -4/Factory | Repaired Arm. Wheel+ 13946 | -4/Factory | Spotted B-86 Titan 14097 | -4/Factory | Discovered new exit (range 12) 14111 | -4/Factory | 7R-MNS successfully reached the Upper Caves 14116 | -4/Factory | Lost 3 parts (1n1u1w) 14146 | -4/Factory | Sucked down chute 14146 | -4/Factory | Entered Waste 14174 | -4/Waste | Spotted C-40 Crusher 14179 | -4/Waste | Spotted C-40 Crusher 14190 | -4/Waste | Crushed by Compactor (1 part destroyed) 14221 | -4/Waste | Spotted C-40 Crusher 14224 | -4/Waste | Spotted C-40 Crusher 14225 | -4/Waste | Spotted C-40 Crusher 14233 | -4/Waste | Crushed by Compactor (1 part destroyed) 14234 | -4/Waste | Crushed by Compactor (1 part destroyed, 1 dropped) 14250 | -4/Waste | Spotted C-40 Crusher 14254 | -4/Waste | Discovered new exit (range 16) 14278 | -4/Waste | Entered Factory 14811 | -4/Factory | Found Prototype Launcher 14872 | -4/Factory | Lost 3 parts (1p1u1w) 14967 | -4/Factory | Lost 3 parts (1n1u1w) 15055 | -4/Factory | Cargo convoy interrupted 15528 | -4/Factory | First assault squad dispatched 15668 | -4/Factory | Discovered new exit (range 7) 15682 | -4/Factory | Entered Research 15682 | -3/Research | Evolved 2 slots: Utility x2 15711 | -3/Research | Lost 5 parts (3n1u1w) 15876 | -3/Research | Lost 5 parts (1n3u1w) 16839 | -3/Research | Lost 5 parts (1p2n1u1w) 16892 | -3/Research | Discovered new exit (range 4) 16940 | -3/Research | Entered another Research area 16940 | -2/Research | Evolved 2 slots: Propulsion x1, Utility x1 17198 | -2/Research | Lost 7 parts (4n2u1w) 17263 | -2/Research | Identified Mni. Smartbomb Launcher 17311 | -2/Research | Spotted B-90 Cyclops 17315 | -2/Research | Lost 19 parts (1p4n5u9w) 17440 | -2/Research | Search patrols dispatched 17614 | -2/Research | Destroyed 8 combat bots 17620 | -2/Research | Lost 6 parts (3n2u1w) 17794 | -2/Research | Discovered new exit (range 8) 17936 | -2/Research | System corruption reached 10% 17936 | -2/Research | Entered Testing 18069 | -2/Testing | Spotted Striker 18071 | -2/Testing | Spotted Striker 18087 | -2/Testing | Destroyed Striker 18111 | -2/Testing | Build established: Hacker-Tank 18145 | -2/Testing | Destroyed Striker 18313 | -2/Testing | Spotted Alpha 7 18334 | -2/Testing | Destroyed Alpha 7 18419 | -2/Testing | Lost 3 parts (1u2w) 18460 | -2/Testing | Scanned by Researcher 18469 | -2/Testing | Build established: Scavenger-Tank 18474 | -2/Testing | Found Prototype Protection 18474 | -2/Testing | Identified SHELL Armor 18565 | -2/Testing | Core integrity fell below 50% 18669 | -2/Testing | Found Prototype Device 18669 | -2/Testing | Identified Exp. Hardlight Generator 18793 | -2/Testing | Lost 3 parts (3n) 18802 | -2/Testing | Protovariant out of control (PL-FBBJJT7LVE) 18802 | -2/Testing | Unleashed a protovariant (PL-FBBJJT7LVE) 18802 | -2/Testing | Watched by a mysterious "MATRIX" hacker 18885 | -2/Testing | Discovered new exit (range 15) 18936 | -2/Testing | First assault squad dispatched 18940 | -2/Testing | Entered Access 18940 | -1/Access | Evolved 2 slots: Power x1, Utility x1 19206 | -1/Access | Identified exit to Surface 19473 | -1/Access | Garrison activated, responded to threat 19669 | -1/Access | Found Prototype Ballistic Gun 19669 | -1/Access | Identified Multirail 20170 | -1/Access | Garrison activated, responded to threat 20763 | -1/Access | Lost 3 parts (1u2w) 21191 | -1/Access | Spotted B-99 Colossus 21301 | -1/Access | Found Prototype Energy Gun 21301 | -1/Access | Identified Enh. Gamma Rifle 21364 | -1/Access | Crushed by falling debris 21365 | -1/Access | System corruption reached 10% 21512 | -1/Access | Found Prototype Launcher 21513 | -1/Access | Identified Ragnarok Missile Launcher 21690 | -1/Access | First assault squad dispatched 22222 | -1/Access | Destroyed 7 combat bots 22327 | -1/Access | Lost 17 parts (3p6n4u4w) 22369 | -1/Access | Found Gamma Bomb Array 22438 | -1/Access | Core integrity fell below 50% 22475 | -1/Access | Core integrity fell below 20% 22498 | -1/Access | Destroyed by G-73 Enforcer with Heavy Laser Last Messages --------------- 22464_ Adv. Target Analyzer temporarily disabled. 22464_ Machine Analyzer temporarily disabled. 22464_ Imp. Heavy Treads destroyed. 22464_ Knocked back. 22467_ Slammed into G-73 Enforcer. 22467_ Critical hit (Burn: +37). 22468_ Adv. Target Analyzer destroyed. 22468_ Slammed into G-73 Enforcer. 22469_ Hvy. Flail destroyed. 22469_ Knocked back. 22470_ Centrium Wheel destroyed. 22471_ Slammed into K-01 Serf. 22476_ K-01 Serf cleans the Terminal. 22478_ System corrupted: IFF burst signal emitted. 22483_ Connecting with Terminal... 22492_ Adv. Corruption Screen intercepted 1% system corruption. 22495_ System corrupted: Matter fused (-8). Map ----- +----------------------------------------------------+ | ?????????????????????# % % ?? | | ?????????????????????######## #######????# #?? | | ???????????????????????####### ##??????????# #?? | | ??????????????????????"S""" #% #???????????# #?? | | ?????????????????? """ """ # #???????????# #?? | | ???????????????# + #???????????# #?? | | ???????????????# # #??????????? #?? | | ???????????????# """"" # #???????????# #?? | | ????????????????????"""" ?# #???????????# #?? | | ????????????????????"""" ?# #???????????# #?? | | ?????????????????????"" ??# #???????????# #?? | | ????????????????????? ??# #???????????# !#?? | | ???????????????????? ???# + ??????????#% #?? | | ??????????????????? ???# # ????????# %#?? | | ??????????????????#######????# # ??????# #?? | | ?????????????????????????????# #?########### #?? | | ?????????????????????????????# g#??# # #?? | | ??????????????????????"#######p #??# #% #?? | | ??????????????????????" #??#"" ! +% ##? | | ??????????????????????" #??#"" %#%%### | | ??????????????????????" #??#"Y *# !*[* | | ??????????????????????" #??#"" !#!!%!! | | ?????????????????